fUSD/lending_fUSD_20240116
["ID","MTS","AMOUNT","RATE_DAILY","PERIOD"]
[311798168,1705409438580,-3404.06752513,0.00022045,2]
[311798169,1705409438591,-471.53335445,0.00022045,2]
[311798170,1705409438601,-315.44,0.00022045,2]
[311798171,1705409438611,-376.11195413,0.00022045,2]
[311798172,1705409438624,-7600.27237397,0.00022045,2]
[311798173,1705409438635,-155.43681351,0.00022045,2]
[311798174,1705409438646,-158.78292622,0.00022045,2]
[311798175,1705409438657,-401.42100812,0.00022045,2]
[311798176,1705409438668,-185.11529179,0.00022045,2]
[311798177,1705409438678,-217.92915205,0.00022045,2]
[311798178,1705409438688,-305.10785675,0.00022045,2]
[311798179,1705409438698,-476.16044024,0.00022046,2]
[311798180,1705409438707,-100000.0,0.00022047,2]
[311798181,1705409438717,-1204.5488,0.00022047,2]
[311798182,1705409438729,-245000.0,0.00022047,2]
[311798183,1705409438739,-1000.0,0.00022047,2]
[311798184,1705409438749,-1000.0,0.00022047,2]
[311798185,1705409438759,-227.15362247,0.00022083,2]
[311798186,1705409438770,-292.35479802,0.00022119,2]
[311798187,1705409438781,-249.49289135,0.00022119,2]
[311798188,1705409438790,-159.43,0.00022121,2]
[311798189,1705409438800,-154.6,0.00022128,2]
[311798190,1705409438810,-156.69,0.00022167,2]
[311798191,1705409438819,-177.67596944,0.0002219,2]
[311798192,1705409438829,-505534.28686793,0.000222,2]
[311798193,1705409438839,-227.15362247,0.00022219,2]
[311798194,1705409438848,-249.49289134,0.00022255,2]
[311798195,1705409438858,-227.15362247,0.00022355,2]
[311798196,1705409438867,-329.57941636,0.0002239,2]
[311798197,1705409438876,-249.49289134,0.0002239,2]
[311798198,1705409438886,-4164.8494,0.00022398,2]
[311798199,1705409438896,-300.0,0.00022489,2]
[311798200,1705409438905,-300.0,0.00022489,2]
[311798201,1705409438914,-2873330.25735797,0.0002249,2]
[311798202,1705409438924,-1793987.21740295,0.0002249,2]
[311798203,1705409438969,-262.25618635,0.00022045,2]
[311798204,1705409438978,-101.36283293,0.0002249,2]
[311798205,1705409439003,-498.28279484,0.0002249,2]
[311798206,1705409439017,-288.41386898,0.0002249,2]
[311798207,1705409439094,2138.69674334,0.00022,2]
[311798208,1705409439146,517.34489861,0.00022,2]
[311798210,1705409439285,4271.25766955,0.00022,2]
[311798216,1705409440027,161.72866539,0.00022,2]
[311798217,1705409440055,888.99348604,0.00022,2]
[311798218,1705409440445,-336.7179586,0.00022045,2]
[311798219,1705409440455,-1374.09807185,0.00022045,2]
[311798220,1705409440464,-163.05673702,0.00022045,2]
[311798221,1705409440474,-1134.78992634,0.00022045,2]
[311798222,1705409440485,-313.80286951,0.00022045,2]
[311798223,1705409440495,-2143.98939105,0.00022045,2]
[311798224,1705409440505,-16276.19342119,0.00022046,2]
[311798225,1705409440515,-81445.99531273,0.0002249,2]
[311798226,1705409440527,-143349.98793607,0.0002249,2]
[311798227,1705409440539,-2802.22759646,0.0002249,2]
[311798248,1705409442391,-939.56400894,0.00022045,2]
[311798250,1705409442401,-3024.10890083,0.00022045,2]
[311798251,1705409442410,-71761.85153143,0.0002249,2]
[311798252,1705409442450,-2434.93162961,0.0002249,2]
[311798253,1705409442462,-7967.13658599,0.0002249,2]
[311798254,1705409442474,-206670.42676257,0.0002249,2]
[311798255,1705409442486,-3609.63733075,0.0002249,2]
[311798256,1705409442497,-1943.15238773,0.0002249,2]
[311798257,1705409442512,-2342.56732538,0.0002249,2]
[311798258,1705409442525,-4990.95561604,0.0002249,2]
[311798259,1705409442536,-5092.30884734,0.0002249,2]
[311798260,1705409442577,-724.18657563,0.0002249,2]
[311798261,1705409442589,-748.63230573,0.0002249,2]
[311798262,1705409442600,-948.4779212,0.0002249,2]
[311798263,1705409442611,-432.00617712,0.0002249,2]
[311798264,1705409442623,-2277.75955266,0.0002249,2]
[311798265,1705409442634,-374.72962927,0.0002249,2]
[311798266,1705409442646,-293.80853246,0.0002249,2]
[311798267,1705409442658,-1228.53770147,0.0002249,2]
[311798268,1705409442678,-17472.33992,0.0002249,2]
[311798269,1705409442690,-1090.25048855,0.0002249,2]
[311798270,1705409442702,-1048.52298024,0.0002249,2]
[311798271,1705409442714,-447.8097865,0.0002249,2]
[311798272,1705409442725,-461.98249002,0.0002249,2]
[311798273,1705409442746,-327.25519082,0.0002249,2]
[311798281,1705409445486,-7792.58086538,0.0002249,2]
[311798282,1705409445545,-2882.23338395,0.0002249,2]
[311798283,1705409445558,-531.911,0.0002249,2]
[311798284,1705409445604,-1014.8698506,0.0002249,2]
[311798285,1705409445616,-4097.51555047,0.0002249,2]
[311798286,1705409445631,-353.86054689,0.0002249,2]
[311798287,1705409446168,-431077.6100405,0.0002249,2]
[311798288,1705409446179,-3054.23820503,0.0002249,2]
[311798289,1705409446191,-600.23811888,0.0002249,2]
[311798290,1705409446202,-773.56478229,0.0002249,2]
[311798291,1705409446237,-2290.46103287,0.0002249,2]
[311798292,1705409446248,-8691.75106017,0.0002249,2]
[311798293,1705409446260,-3864.00453515,0.0002249,2]
[311798295,1705409451294,150.0,0.0002149,2]
[311798297,1705409475880,3974.2821582,0.00022,30]
[311798299,1705409484453,1000.0,0.00021947,2]
[311798300,1705409491558,163.52,0.00021841,2]
[311798301,1705409494327,205.0,0.00021918,2]
[311798307,1705409528696,528.86946151,0.000199,3]
[311798308,1705409553816,206.0,0.00021918,2]
[311798313,1705409598077,553.87,0.00021485,2]
[311798315,1705409646317,187.37,0.0001955,2]
[311798316,1705409646762,187.37,0.00021814,2]
[311798317,1705409665819,272.33856688,0.000137,2]
[311798320,1705409681728,153.83,0.0002161,2]
[311798321,1705409681908,153.83,0.00021985,2]
[311798338,1705409725577,4376.21,0.00021442,2]
[311798339,1705409737562,200.0,0.00021433,2]
[311798341,1705409739434,175.79,0.00021433,2]
[311798342,1705409743961,358.87,0.00021433,2]
[311798352,1705409807280,371.36139,0.00021433,2]
[311798353,1705409809432,1031.40550924,0.00021433,2]
[311798355,1705409812484,291.48413995,0.00021433,2]
[311798356,1705409817114,159.3703486,0.00021433,2]
[311798357,1705409821843,155.0,0.00021433,2]
[311798360,1705409829912,202.07,0.00021402,2]
[311798365,1705409845678,239.36,0.00021381,2]
[311798378,1705409977853,159.8,0.00021549,2]
[311798392,1705410129515,153.83,0.00021477,2]
[311798393,1705410136301,583.71584965,0.00022,2]
[311798394,1705410177518,556.9,0.00021321,2]
[311798400,1705410228926,177.44,0.00019402,2]
[311798401,1705410229149,177.44,0.00021666,2]
[311798403,1705410279515,150.17626739,0.00021644,2]
[311798404,1705410282573,349.15,0.00021313,2]
[311798406,1705410291721,214.6075638,0.00020033,5]
[311798411,1705410378443,158.06005185,0.00021943,2]
[311798412,1705410386879,160.98,0.00021308,2]
[311798414,1705410408580,181.07,0.00021308,10]
[311798422,1705410493004,158.47,0.00021514,2]
[311798427,1705410543917,206.0,0.00021848,2]
[311798433,1705410630211,696.37,0.00022,2]
[311798442,1705410631691,-363.95030567,0.00022002,2]
[311798443,1705410631700,-225.94823342,0.00022003,2]
[311798444,1705410631712,-542.73763246,0.00022004,2]
[311798445,1705410631721,-220.34760172,0.00022005,2]
[311798446,1705410631730,-250.41800623,0.00022036,2]
[311798447,1705410631758,-49.58199377,0.00022036,2]
[311798448,1705410631767,-150.0,0.00022036,2]
[311798449,1705410631776,-24633.15394653,0.00022037,2]
[311798450,1705410631787,-731.07097173,0.00022037,2]
[311798451,1705410631800,-135088.77508174,0.00022037,2]
[311798452,1705410631809,-1800.0,0.00022043,2]
[311798453,1705410631818,-723.95,0.00022043,2]
[311798454,1705410631828,-13855.0297705,0.00022044,2]
[311798455,1705410631837,-729.78,0.00022045,2]
[311798456,1705410631848,-711.4,0.00022046,2]
[311798457,1705410631858,-158.06005184,0.0002209,2]
[311798458,1705410631870,-546.04,0.0002209,2]
[311798459,1705410631879,-158.06005184,0.00022238,2]
[311798460,1705410631889,-499.99,0.00022238,2]
[311798461,1705410631899,-150.99,0.00022238,2]
[311798462,1705410631909,-721.12,0.00022251,2]
[311798463,1705410631918,-719.81,0.00022251,2]
[311798464,1705410631928,-720.69,0.00022252,2]
[311798465,1705410631938,-715.19,0.00022255,2]
[311798466,1705410631948,-710.17,0.00022255,2]
[311798467,1705410631958,-726.05,0.00022258,2]
[311798468,1705410631967,-725.11,0.00022259,2]
[311798469,1705410631977,-204.3370281,0.00022259,2]
[311798470,1705410631987,-1765.36,0.00022259,2]
[311798471,1705410631997,-1006.3554781,0.0002226,2]
[311798472,1705410632007,-729.34,0.0002226,2]
[311798473,1705410632016,-709.67,0.00022264,2]
[311798474,1705410632026,-719.87,0.00022264,2]
[311798475,1705410632036,-403.74463953,0.0002229,2]
[311798476,1705410632047,-349.15,0.00022292,2]
[311798478,1705410632057,-150.0,0.00022376,2]
[311798480,1705410632065,-403.74463946,0.00022377,2]
[311798482,1705410632074,-716.78,0.00022383,2]
[311798484,1705410632084,-722.31,0.00022385,2]
[311798486,1705410632093,-335.64807065,0.00022385,2]
[311798488,1705410632102,-158.06005184,0.00022385,2]
[311798490,1705410632111,-46891.3986,0.00022386,2]
[311798492,1705410632120,-318.05071848,0.00022386,2]
[311798494,1705410632129,-498.98578268,0.00022386,2]
[311798496,1705410632138,-178.07907244,0.00022386,2]
[311798498,1705410632147,-150.21386036,0.00022386,2]
[311798500,1705410632157,-158.61995858,0.00022388,2]
[311798502,1705410632166,-758.82,0.00022389,2]
[311798504,1705410632175,-758.82,0.00022389,2]
[311798506,1705410632183,-758.82,0.00022389,2]
[311798509,1705410632192,-758.82,0.00022389,2]
[311798512,1705410632202,-758.82,0.00022389,2]
[311798514,1705410632213,-758.82,0.00022389,2]
[311798516,1705410632222,-758.82,0.00022389,2]
[311798518,1705410632232,-758.82,0.00022389,2]
[311798520,1705410632242,-758.82,0.00022389,2]
[311798522,1705410632252,-758.82,0.00022389,2]
[311798524,1705410632262,-758.82,0.00022389,2]
[311798526,1705410632275,-758.82,0.00022389,2]
[311798528,1705410632287,-758.82,0.00022389,2]
[311798531,1705410632299,-758.82,0.00022389,2]
[311798533,1705410632311,-758.82,0.00022389,2]
[311798535,1705410632322,-758.82,0.00022389,2]
[311798537,1705410632331,-758.82,0.00022389,2]
[311798539,1705410632347,-758.82,0.00022389,2]
[311798541,1705410632359,-758.82,0.00022389,2]
[311798544,1705410632369,-758.82,0.00022389,2]
[311798546,1705410632382,-758.82,0.00022389,2]
[311798547,1705410632394,-758.82,0.00022389,2]
[311798548,1705410632404,-758.82,0.00022389,2]
[311798549,1705410632416,-758.8319285,0.00022389,2]
[311798550,1705410632425,-384.10454389,0.00022389,2]
[311798551,1705410632436,-245000.0,0.0002239,2]
[311798552,1705410632447,-21430.4865,0.0002239,2]
[311798553,1705410632457,-1000.0,0.0002239,2]
[311798554,1705410632468,-1000.0,0.0002239,2]
[311798555,1705410632478,-220.0,0.0002243,2]
[311798556,1705410632486,-219.0,0.0002243,2]
[311798557,1705410632498,-335.64807061,0.00022432,2]
[311798558,1705410632507,-720.42,0.00022444,2]
[311798559,1705410632517,-403.74463946,0.00022464,2]
[311798560,1705410632527,-3887.0,0.00022466,2]
[311798561,1705410632537,-5183.0,0.00022466,2]
[311798562,1705410632548,-800.0,0.00022466,2]
[311798563,1705410632558,-800.0,0.00022466,2]
[311798564,1705410632570,-279.24625351,0.00022476,2]
[311798565,1705410632582,-710.64,0.00022476,2]
[311798566,1705410632595,-419.05406593,0.00022477,2]
[311798567,1705410632608,-335.64807061,0.00022479,2]
[311798568,1705410632622,-13259.36060662,0.00022483,2]
[311798569,1705410632635,-156.45657888,0.00022484,2]
[311798570,1705410632647,-207.57887739,0.00022484,2]
[311798571,1705410632660,-156.65880268,0.00022484,2]
[311798572,1705410632674,-532.67845279,0.00022484,2]
[311798573,1705410632687,-327.84761538,0.00022484,2]
[311798574,1705410632699,-348.98382831,0.00022484,2]
[311798575,1705410632713,-172.97736912,0.00022484,2]
[311798576,1705410632724,-298.04649638,0.00022484,2]
[311798577,1705410632736,-696.50758074,0.00022484,2]
[311798578,1705410632749,-10486.82282849,0.00022484,2]
[311798579,1705410632760,-1912.9258164,0.00022484,2]
[311798580,1705410632773,-181.88839874,0.00022484,2]
[311798581,1705410632785,-527.03240952,0.00022484,7]
[311798582,1705410632796,-55041.98270943,0.00022485,2]
[311798583,1705410632811,-23810.50197038,0.00022485,2]
[311798584,1705410632823,-554.40081282,0.00022485,2]
[311798585,1705410632883,-409.22293735,0.00022485,2]
[311798586,1705410632903,-1690.5686565,0.00022485,2]
[311798587,1705410632918,-1408.29903671,0.00022485,2]
[311798588,1705410632977,-298.15429572,0.00022485,2]
[311798589,1705410632990,-8321.99041137,0.00022485,2]
[311798590,1705410633019,-5991.96335281,0.00022485,2]
[311798591,1705410633032,-138833.98293254,0.00022485,2]
[311798593,1705410636250,161.77,0.00021647,2]
[311798598,1705410637730,-161.77,0.00022023,2]
[311798599,1705410637741,-161.77,0.00022399,2]
[311798600,1705410637753,-2789842.83886826,0.00022485,2]
[311798601,1705410637765,-505534.28686793,0.00022485,2]
[311798602,1705410637777,-135520.52934281,0.00022486,2]
[311798603,1705410637788,-717.66,0.00022486,2]
[311798604,1705410637805,-2613.48705242,0.00022487,2]
[311798605,1705410637816,-2131.66263178,0.00022487,2]
[311798606,1705410637827,-4262.60866632,0.00022487,2]
[311798607,1705410637839,-1598.73,0.00022487,2]
[311798608,1705410637851,-241.79662679,0.00022487,2]
[311798609,1705410637862,-2894.68220287,0.00022487,2]
[311798610,1705410637874,-3849.91637634,0.00022487,2]
[311798611,1705410637887,-6436.33635297,0.00022488,2]
[311798612,1705410637899,-234.85086633,0.00022488,2]
[311798613,1705410637913,-374.03521976,0.00022488,2]
[311798614,1705410637924,-155.36887452,0.00022488,2]
[311798615,1705410637936,-155.42252281,0.00022488,2]
[311798616,1705410637949,-155.0,0.00022488,2]
[311798618,1705410637961,-1040.28791122,0.00022488,2]
[311798620,1705410637973,-156.61527588,0.00022488,2]
[311798622,1705410637985,-155.31369168,0.00022488,2]
[311798623,1705410637997,-156.81769853,0.00022488,2]
[311798626,1705410638009,-196.155894,0.00022488,2]
[311798628,1705410638020,-170.29594982,0.00022488,2]
[311798630,1705410638032,-155.76324602,0.00022488,2]
[311798632,1705410638043,-156.14275959,0.00022488,2]
[311798635,1705410638054,-1374.32706454,0.00022488,2]
[311798637,1705410638066,-234.66616213,0.00022488,2]
[311798639,1705410638078,-156.68200812,0.00022488,2]
[311798642,1705410638090,-155.63675847,0.00022488,2]
[311798644,1705410638101,-270.89955582,0.00022488,2]
[311798646,1705410638111,-280.49475128,0.00022488,2]
[311798648,1705410638120,-156.01463714,0.00022488,2]
[311798650,1705410638129,-155.56428189,0.00022488,2]
[311798652,1705410638138,-156.15402987,0.00022488,2]
[311798654,1705410638147,-155.47264453,0.00022488,2]
[311798656,1705410638157,-269.50645635,0.00022488,2]
[311798658,1705410638165,-2935.98070362,0.00022488,2]
[311798660,1705410638174,-155.37256107,0.00022488,2]
[311798662,1705410638183,-1452.38332864,0.00022488,2]
[311798664,1705410638192,-3338.57654665,0.00022489,2]
[311798666,1705410638201,-250.02290447,0.00022489,2]
[311798668,1705410638211,-20825.66704946,0.00022489,2]
[311798670,1705410638219,-244.22314293,0.00022489,2]
[311798672,1705410638229,-163.63015791,0.00022489,2]
[311798674,1705410638238,-189940.84797347,0.0002249,2]
[311798676,1705410638247,-2000.0,0.0002249,2]
[311798678,1705410638256,-200.0,0.0002249,2]
[311798680,1705410638265,-732.72,0.0002249,2]
[311798682,1705410638274,-712.2,0.00022498,2]
[311798684,1705410638283,-521.17755723,0.00022499,2]
[311798686,1705410638292,-12294.16339703,0.000225,2]
[311798688,1705410638302,-1000.0,0.000225,2]
[311798783,1705410639163,-440.32,0.000225,2]
[311798788,1705410639194,-1500.0,0.000225,2]
[311798792,1705410639222,-335.64807061,0.00022525,2]
[311798795,1705410639242,-403.74463946,0.00022551,2]
[311798797,1705410639251,-335.64807061,0.00022572,2]
[311798799,1705410639260,-5760.67307897,0.000226,3]
[311798801,1705410639269,-401.54,0.000226,2]
[311798803,1705410639278,-1881.76,0.000226,2]
[311798805,1705410639287,-150.0,0.000226,2]
[311798807,1705410639296,-300.0,0.000226,2]
[311798809,1705410639305,-388.74,0.000226,2]
[311798811,1705410639315,-1879.0,0.000226,2]
[311798813,1705410639324,-335.64807061,0.00022619,2]
[311798815,1705410639333,-727.05,0.00022638,2]
[311798817,1705410639342,-403.74463946,0.00022639,2]
[311798819,1705410639351,-178.07907243,0.00022643,2]
[311798821,1705410639362,-150.21386034,0.00022643,2]
[311798823,1705410639371,-335.64807061,0.00022666,2]
[311798825,1705410639380,-2764.0,0.000227,2]
[311798827,1705410639389,-28489.0,0.000227,2]
[311798829,1705410639398,-889.61,0.000227,2]
[311798831,1705410639407,-156.69,0.00022708,2]
[311798833,1705410639416,-335.64807061,0.00022713,2]
[311798835,1705410639425,-2000.0,0.00022715,2]
[311798837,1705410639434,-200.0,0.00022715,2]
[311798839,1705410639444,-150.0,0.00022721,2]
[311798841,1705410639453,-403.74463946,0.00022726,2]
[311798843,1705410639463,-150.0,0.0002274,2]
[311798845,1705410639472,-5811.66661202,0.00022743,2]
[311798847,1705410639483,-29494.91806413,0.00022743,2]
[311798850,1705410639492,-15700.5079492,0.00022743,2]
[311798852,1705410639502,-2271.89382379,0.00022743,2]
[311798853,1705410639511,-50423.16621065,0.00022743,2]
[311798855,1705410639521,-150.0,0.00022749,2]
[311798857,1705410639530,-150.0,0.00022752,2]
[311798858,1705410639539,-335.64807061,0.0002276,2]
[311798859,1705410639549,-150.0,0.00022761,2]
[311798860,1705410639559,-1500.0,0.00022766,2]
[311798861,1705410639568,-150.0,0.00022771,2]
[311798862,1705410639577,-1500.0,0.00022773,2]
[311798863,1705410639586,-150.0,0.00022775,2]
[311798864,1705410639595,-161.77,0.00022775,2]
[311798865,1705410639605,-150.0,0.00022776,2]
[311798867,1705410639616,-150.0,0.00022777,2]
[311798870,1705410639627,-150.0,0.00022777,2]
[311798872,1705410639636,-150.0,0.00022781,2]
[311798874,1705410639645,-150.0,0.00022781,2]
[311798876,1705410639654,-200.0,0.00022783,2]
[311798878,1705410639668,-150.0,0.00022786,2]
[311798880,1705410639677,-150.0,0.00022787,2]
[311798882,1705410639686,-150.0,0.00022788,2]
[311798884,1705410639696,-150.0,0.00022793,2]
[311798886,1705410639706,-150.0,0.00022794,2]
[311798888,1705410639715,-201.78177597,0.000228,2]
[311798890,1705410639724,-150.0,0.000228,2]
[311798892,1705410639734,-335.64807061,0.00022806,2]
[311798894,1705410639743,-200.0,0.00022808,2]
[311798896,1705410639753,-150.0,0.00022809,2]
[311798898,1705410639762,-403.74463946,0.00022813,2]
[311798901,1705410639772,-500.0,0.00022813,2]
[311798902,1705410639781,-200.0,0.00022813,2]
[311798904,1705410639791,-500.0,0.00022815,2]
[311798907,1705410639801,-200.0,0.00022815,2]
[311798908,1705410639810,-200.0,0.00022815,2]
[311798910,1705410639820,-800.0,0.00022816,2]
[311798913,1705410639830,-150.0,0.00022817,2]
[311798915,1705410639839,-150.0,0.0002282,2]
[311798917,1705410639849,-150.0,0.00022823,2]
[311798918,1705410639858,-150.0,0.00022825,2]
[311798921,1705410639868,-150.0,0.00022828,2]
[311798923,1705410639877,-150.0,0.00022834,2]
[311798925,1705410639886,-159.43,0.00022834,2]
[311798927,1705410639895,-150.0,0.00022839,2]
[311798930,1705410639904,-150.0,0.00022849,2]
[311798933,1705410639914,-150.0,0.0002285,2]
[311798935,1705410639924,-335.64807061,0.00022853,2]
[311798937,1705410639933,-150.0,0.00022855,2]
[311798940,1705410639942,-150.0,0.00022856,2]
[311798942,1705410639952,-150.0,0.00022859,2]
[311798944,1705410639961,-150.0,0.00022866,2]
[311798946,1705410639970,-150.0,0.00022866,2]
[311798948,1705410639980,-789.0,0.00022867,2]
[311798950,1705410639989,-150.0,0.00022873,2]
[311798952,1705410639998,-150.0,0.00022876,2]
[311798954,1705410640007,-701.33387244,0.00022885,4]
[311798956,1705410640016,-500.0,0.00022885,2]
[311798959,1705410640026,-500.0,0.00022885,2]
[311798962,1705410640035,-500.0,0.00022885,2]
[311798965,1705410640044,-500.0,0.00022885,2]
[311798968,1705410640054,-500.0,0.00022885,2]
[311798971,1705410640063,-267.6575,0.00022885,2]
[311798974,1705410640072,-1000.0,0.00022885,2]
[311798977,1705410640082,-1000.0,0.00022885,2]
[311798979,1705410640091,-1000.0,0.00022885,2]
[311798981,1705410640101,-1000.0,0.00022885,2]
[311798983,1705410640110,-1000.0,0.00022885,2]
[311798985,1705410640119,-1000.0,0.00022885,2]
[311798987,1705410640128,-1000.0,0.00022885,2]
[311798989,1705410640138,-1000.0,0.00022885,2]
[311798991,1705410640147,-1000.0,0.00022885,2]
[311798993,1705410640156,-1000.0,0.00022885,2]
[311798995,1705410640166,-1000.0,0.00022885,2]
[311798997,1705410640175,-1000.0,0.00022885,2]
[311798999,1705410640185,-1000.0,0.00022885,2]
[311799001,1705410640194,-1000.0,0.00022885,2]
[311799004,1705410640203,-1000.0,0.00022885,2]
[311799006,1705410640213,-1000.0,0.00022885,2]
[311799008,1705410640222,-1000.0,0.00022885,2]
[311799010,1705410640231,-1000.0,0.00022885,2]
[311799012,1705410640240,-1000.0,0.00022885,2]
[311799014,1705410640249,-1000.0,0.00022885,2]
[311799016,1705410640258,-1000.0,0.00022885,2]
[311799018,1705410640268,-1000.0,0.00022885,2]
[311799020,1705410640277,-1000.0,0.00022885,2]
[311799022,1705410640287,-1000.0,0.00022885,2]
[311799024,1705410640296,-1000.0,0.00022885,2]
[311799025,1705410640306,-1000.0,0.00022885,2]
[311799027,1705410640315,-1000.0,0.00022885,2]
[311799029,1705410640325,-1000.0,0.00022885,2]
[311799031,1705410640335,-1000.0,0.00022885,2]
[311799033,1705410640346,-1000.0,0.00022885,2]
[311799036,1705410640355,-1000.0,0.00022885,2]
[311799038,1705410640365,-1000.0,0.00022885,2]
[311799040,1705410640375,-1000.0,0.00022885,2]
[311799041,1705410640384,-1000.0,0.00022885,2]
[311799044,1705410640394,-1000.0,0.00022885,2]
[311799046,1705410640403,-1000.0,0.00022885,2]
[311799047,1705410640412,-1000.0,0.00022885,2]
[311799050,1705410640422,-1000.0,0.00022885,2]
[311799052,1705410640433,-418.2686,0.00022885,2]
[311799054,1705410640442,-500.0,0.00022885,2]
[311799056,1705410640451,-500.0,0.00022885,2]
[311799058,1705410640460,-500.0,0.00022885,2]
[311799060,1705410640469,-500.0,0.00022885,2]
[311799061,1705410640479,-500.0,0.00022885,2]
[311799064,1705410640489,-500.0,0.00022885,2]
[311799066,1705410640499,-500.0,0.00022885,2]
[311799067,1705410640509,-500.0,0.00022885,2]
[311799070,1705410640520,-500.0,0.00022885,2]
[311799072,1705410640529,-500.0,0.00022885,2]
[311799074,1705410640539,-500.0,0.00022885,2]
[311799076,1705410640549,-500.0,0.00022885,2]
[311799078,1705410640559,-500.0,0.00022885,2]
[311799080,1705410640567,-500.0,0.00022885,2]
[311799082,1705410640576,-500.0,0.00022885,2]
[311799084,1705410640586,-500.0,0.00022885,2]
[311799086,1705410640596,-500.0,0.00022885,2]
[311799087,1705410640606,-500.0,0.00022885,2]
[311799089,1705410640616,-500.0,0.00022885,2]
[311799092,1705410640625,-508.5987,0.00022885,2]
[311799093,1705410640635,-19697.0,0.00022889,2]
[311799095,1705410640644,-5888.336,0.00022889,2]
[311799098,1705410640654,-2903.0,0.00022889,2]
[311799100,1705410640681,-2272.0,0.00022889,2]
[311799102,1705410640698,-5609.504,0.00022889,2]
[311799104,1705410640708,-8131.481,0.00022889,2]
[311799106,1705410640717,-42179.0,0.00022889,2]
[311799108,1705410640726,-4202.612,0.00022889,2]
[311799109,1705410640736,-1068.075,0.00022889,2]
[311799112,1705410640745,-150.0,0.00022895,2]
[311799114,1705410640756,-150.0,0.00022896,2]
[311799116,1705410640768,-1000.0,0.00022899,2]
[311799118,1705410640778,-19532.149095,0.000229,2]
[311799120,1705410640788,-8416.691897,0.000229,2]
[311799122,1705410640797,-5000.0,0.000229,2]
[311799124,1705410640807,-627285.98679897,0.000229,2]
[311799127,1705410640823,-307.40360557,0.000229,2]
[311799131,1705410640852,-1016.94337793,0.000229,2]
[311799133,1705410640864,-633.3355032,0.000229,2]
[311799139,1705410640914,-35239.46496004,0.000229,2]
[311799141,1705410640926,-25619.12817307,0.000229,2]
[311799143,1705410640938,-59495.91036692,0.000229,2]
[311799146,1705410640950,-77420.8272143,0.000229,2]
[311799148,1705410640960,-335.64807061,0.000229,2]
[311799150,1705410640970,-250.0,0.000229,2]
[311799152,1705410640980,-403.74463946,0.000229,2]
[311799154,1705410640989,-150.87795716,0.000229,2]
[311799156,1705410640999,-150.87795684,0.000229,2]
[311799158,1705410641009,-150.87795684,0.000229,2]
[311799160,1705410641019,-150.87795684,0.000229,2]
[311799162,1705410641029,-150.87795684,0.000229,2]
[311799164,1705410641039,-150.87795684,0.000229,2]
[311799166,1705410641048,-150.87795684,0.000229,2]
[311799168,1705410641058,-150.87795684,0.000229,2]
[311799170,1705410641067,-150.87795684,0.000229,2]
[311799172,1705410641076,-150.87795684,0.000229,2]
[311799174,1705410641085,-150.87795684,0.000229,2]
[311799176,1705410641095,-150.87795684,0.000229,2]
[311799178,1705410641104,-150.87795684,0.000229,2]
[311799180,1705410641113,-150.87795684,0.000229,2]
[311799182,1705410641122,-150.87795684,0.000229,2]
[311799184,1705410641131,-150.87795684,0.000229,2]
[311799186,1705410641141,-150.87795684,0.000229,2]
[311799188,1705410641150,-150.87795684,0.000229,2]
[311799190,1705410641159,-150.87795684,0.000229,2]
[311799192,1705410641169,-150.87795684,0.000229,2]
[311799194,1705410641179,-150.87795684,0.000229,2]
[311799196,1705410641188,-150.87795684,0.000229,2]
[311799198,1705410641198,-150.87795684,0.000229,2]
[311799200,1705410641209,-150.87795684,0.000229,2]
[311799202,1705410641218,-150.87795684,0.000229,2]